[Event "67th Mexican-ch Open 2022"]
[Site "Chihuahua"]
[Date "2022.04.17"]
[Round "8.11"]
[White "Maass Garza R, Alejandro"]
[Black "Jorajuria Mendoza, Algol"]
[Result "0-1"]
[ECO "D04"]
[WhiteElo "2265"]
[BlackElo "2006"]
[Annotator "TA"]
[PlyCount "88"]
[EventDate "2022.04.12"]
[EventType "swiss"]
[EventCountry "MEX"]
[SourceTitle "playchess.com"]
[Source "ChessBase"]
[SourceQuality "1"]
[TimeControl "5400+30"]

{[%evp 9,88,8,16,15,18,15,22,0,-6,-4,-7,-18,-13,-18,-14,-67,-34,-56,-57,-68,-68,-67,-67,-67,-71,-116,-120,-108,-93,-142,-137,-143,-136,-128,-104,-121,-36,-107,-63,-42,-69,-60,0,-93,0,0,0,0,0,0,0,0,0,0,0,4,6,-8,-8,-25,0,0,0,-8,-10,-21,-14,-16,-16,-221,-224,-379,-379,-374,-366,-352,-304,-339,-304,-29978,-29979]} 1. d4 {[%emt 0:00:13]} d5 {[%emt 0:00:07]} 2. Nf3 {[%emt 0:00:15]} Nf6 {[%emt 0:00:08]} 3. e3 {[%emt 0:00:29]} c6 {[%emt 0:00:56]} 4. Bd3 {[%emt 0:00:23]} Bg4 {[%emt 0:00:28]} 5. h3 {[%emt 0:00:13]} Bh5 {[%emt 0:00:13]} 6. c4 {[%emt 0:02:41] D04: Colle System.} Nbd7 {[%emt 0:03:54][%cal Oe7e5]} 7. cxd5 {[%emt 0:01:44]} cxd5 {[%emt 0:00:14]} 8. Nbd2 {[%emt 0:00:51] The position is equal.} e6 {[%emt 0:05:01][%cal Be7e6,Be6e5,Be5e4][%mdl 32]} 9. O-O {[%emt 0:01:30] [#]} Be7 $146 {[%emt 0:01:24]} ({Predecessor:} 9... Bd6 10. b3 O-O 11. Bb2 Qe7 12. Rc1 Rad8 13. Rc3 e5 14. dxe5 Nxe5 15. Be2 Nc6 {½-½ (36) Archambault,P-Pimmingstorfer,C CServe email 1995}) 10. Re1 {[%emt 0:04:56]} O-O {[%emt 0:01:32]} 11. Qb3 {[%emt 0:11:42]} Qc7 {[%emt 0:05:12]} 12. Nh2 {[%emt 0:07:08]} ({White should try} 12. Nf1 $11) 12... e5 {[%emt 0:02:19]} 13. Ndf1 {[%emt 0:06:56]} e4 {[%emt 0:05:12]} 14. Be2 {[%emt 0:02:35]} Bxe2 {[%emt 0:01:44]} 15. Rxe2 {[%emt 0:00:04]} Rfc8 {[%emt 0:04:01]} 16. Ng3 {[%emt 0:00:53]} g6 {[%emt 0:01:23]} 17. Ng4 {[%emt 0:08:02]} Nxg4 {[%emt 0:05:35]} 18. hxg4 {[%emt 0:00:02]} Qd6 {[%emt 0:00:32]} 19. Bd2 {[%emt 0:01:15]} (19. Nf1 $142) 19... Nf6 $17 {[%emt 0:00:33]} 20. a3 {[%emt 0:01:18]} a5 {[%emt 0:01:00] Against Bb4} (20... Nxg4 21. Bb4 Qb6 22. Qxd5 Bxb4 23. axb4 $11) 21. g5 {[%emt 0:01:00]} Nd7 {[%emt 0:00:41]} 22. Qb5 {[%emt 0:00:09]} b6 {[%emt 0:03:22]} (22... Qc6 $17 23. Qxc6 Rxc6) 23. b4 {[%emt 0:01:19]} (23. Ree1 $1 $15) 23... Bxg5 {[%emt 0:00:52]} 24. Nxe4 $1 {[%emt 0:00:11]} dxe4 {[%emt 0:00:19]} 25. Qxg5 {[%emt 0:00:15][%cal Rb4a5]} f5 {[%emt 0:02:28]} ({Better is} 25... a4 $1 $15) 26. g4 {[%emt 0:03:49]} (26. bxa5 $11 bxa5 27. Be1) 26... Qf6 {[%emt 0:01:19] &Nero is more active.} ({Black should play} 26... a4 $17) 27. Qxf6 $11 {[%emt 0:06:17]} Nxf6 {[%emt 0:00:05]} 28. gxf5 {[%emt 0:01:05]} gxf5 {[%emt 0:00:07]} 29. bxa5 {[%emt 0:00:35]} bxa5 {[%emt 0:00:06]} 30. Rb1 {[%emt 0:00:17]} Rc2 {[%emt 0:03:07]} 31. Rb5 {[%emt 0:03:53][%csl LRa5,LRf5]} Ra2 {[%emt 0:01:17]} 32. Rxf5 {[%emt 0:00:25]} Kf7 {[%emt 0:00:26]} 33. Kf1 {[%emt 0:02:15]} Rxa3 {[%emt 0:00:39]} 34. Bc1 {[%emt 0:01:05]} (34. f3 $5 {[%cal Rf3e4]} Kg6 35. Rf4 exf3 36. Rxf3 $15) 34... Rb3 {[%emt 0:02:22]} (34... Ra1 $5 {[%cal Ra1c1]} 35. Rc2 Kg6 $15) 35. Rc2 {[%emt 0:00:10] Hoping for Rc6.} Kg6 {[%emt 0:00:37]} 36. Rf4 {[%emt 0:00:38]} Ra6 {[%emt 0:00:34] Against Rc6} 37. f3 $1 {[%emt 0:08:54]} exf3 {[%emt 0:04:06]} 38. Rxf3 {[%emt 0:00:09]} a4 {[%emt 0:00:40] Strongly threatening ...a3.} 39. d5 $2 {[%emt 0:08:00] [#] Now White is beyond hope.} (39. Rg3+ $11 Kf7 40. Rc7+ Kf8 41. Rc8+ Ne8 42. Rg5) 39... a3 $1 $19 {[%emt 0:00:29] ...a2 is the strong threat.} (39... Nxd5 $2 40. Rg2+ Kh6 41. Rh3#) 40. Bxa3 {[%emt 0:01:32]} ({Much weaker is} 40. Rg2+ Kf7 41. Bxa3 Rb1+ 42. Bc1 Rxc1+ $19) (40. Rg3+ Kf7 41. Rc7+ Ke8 42. Rgg7) 40... Rbxa3 {[%emt 0:00:44]} ({Stronger than} 40... Raxa3 41. Rc6 $11) 41. Rg2+ {[%emt 0:02:30]} Kf7 {[%emt 0:00:09]} 42. Rgf2 {[%emt 0:00:21]} Ke7 {[%emt 0:01:48]} 43. Kg2 {[%emt 0:00:40]} Ng4 {[%emt 0:04:28]} ({Not} 43... Nxd5 $2 44. Rf7+ Kd8 45. Rf8+ Ke7 46. R8f7+ Ke8 47. Rf8+ Kd7 48. R8f7+ Kd8 49. Rf8+ Ke7 50. R8f7+ $19) 44. Rf1 {[%emt 0:00:16] [#]} (44. Rf7+ $19 Kd6 45. Re2) 44... Nxe3+ {[%emt 0:00:18] Weighted Error Value: White=0.46/Black=0.15 (very precise)} 0-1

[Event "67th Mexican-ch Open 2022"]
[Site "Chihuahua"]
[Date "2022.04.17"]
[Round "8.12"]
[White "Sandoval Mercado, Carlos"]
[Black "Avila Rodriguez, Joshua Ad"]
[Result "1/2-1/2"]
[ECO "E04"]
[WhiteElo "2289"]
[BlackElo "2182"]
[Annotator "TA"]
[PlyCount "112"]
[EventDate "2022.04.12"]
[EventType "swiss"]
[EventCountry "MEX"]
[SourceTitle "playchess.com"]
[Source "ChessBase"]
[SourceQuality "1"]
[TimeControl "5400+30"]

{[%evp 19,112,1,17,6,29,29,32,19,71,38,76,56,79,51,91,90,202,226,198,208,195,215,249,136,122,108,126,120,134,132,213,200,189,58,187,170,243,165,163,157,154,152,155,160,150,156,166,136,142,96,100,86,138,140,156,135,131,137,153,65,96,-13,64,45,50,-8,62,37,74,74,74,74,74,59,59,59,59,59,59,59,76,59,77,59,76,59,76,76,76,59,76,60,83,83,83]} 1. d4 {[%emt 0:00:02]} Nf6 {[%emt 0:00:20]} 2. c4 {[%emt 0:00:05]} e6 {[%emt 0:00:06]} 3. Nf3 {[%emt 0:00:05]} d5 {[%emt 0:00:07]} 4. g3 {[%emt 0:00:05]} dxc4 {[%emt 0:00:16]} 5. Bg2 {[%emt 0:00:05]} c5 {[%emt 0:00:14]} 6. O-O {[%emt 0:01:11]} Nc6 {[%emt 0:02:28]} 7. Qa4 {[%emt 0:02:20]} Bd7 {[%emt 0:00:49]} 8. Qxc4 {[%emt 0:00:15]} b5 {[%emt 0:00:26]} 9. Qd3 {[%emt 0:00:57]} c4 {[%emt 0:00:12]} 10. Qd1 {[%emt 0:00:52]} Rc8 {[%emt 0:01:24]} 11. Re1 {[%emt 0:03:42] E04: Open Catalan: 5 Nf3.} Bb4 {[%emt 0:10:49]} 12. Nc3 {[%emt 0:02:12]} O-O {[%emt 0:05:31]} 13. e4 {[%emt 0:02:57] White is slightly better.} Re8 {[%emt 0:15:43] [#]} (13... h6 $11) 14. Bf4 $146 {[%emt 0:12:30]} ({Predecessor:} 14. Nxb5 Bxe1 15. Nxe1 e5 16. Bg5 Rb8 17. Bxf6 Qxf6 18. Nc7 Rxb2 19. Nf3 Nxd4 20. Nxe8 Bxe8 {0-1 (30) Gilea,L (2270)-Cosma,I (2400) Baile Govora 2017}) 14... Ne7 {[%emt 0:22:07]} 15. Ne5 {[%emt 0:10:17]} Ba5 {[%emt 0:00:53]} 16. a3 {[%emt 0:02:06]} (16. Nxd7 Qxd7 17. Bg5 b4 $11) 16... a6 {[%emt 0:06:30]} 17. Bg5 {[%emt 0:03:22]} Bb6 {[%emt 0:14:50]} (17... h6 $16 {was necessary.} 18. Bxf6 gxf6) 18. Bxf6 $18 {[%emt 0:23:22]} gxf6 {[%emt 0:00:07]} 19. Ng4 {[%emt 0:00:03]} Kg7 {[%emt 0:00:43]} 20. e5 $1 {[%emt 0:00:11]} (20. Qd2 $6 Ng8 $14) 20... Ng8 {[%emt 0:01:47]} 21. exf6+ {[%emt 0:06:49]} (21. Ne4 $1 $18 f5 22. Ngf6) 21... Nxf6 $16 {[%emt 0:00:20]} 22. Ne5 {[%emt 0:00:01] Against Bc6. Pair of Knights!} Rg8 {[%emt 0:07:29]} 23. Qd2 {[%emt 0:07:02]} Be8 {[%emt 0:01:54]} 24. Rad1 {[%emt 0:02:09] 0x0.002ceff46a05dp-1022s more active pieces.} Nd5 {[%emt 0:00:48]} (24... Kh8 $16 {was called for.}) 25. Nxd5 {[%emt 0:02:04]} exd5 {[%emt 0:00:02] [#]} 26. Ng4 {[%emt 0:00:48]} (26. Bxd5 $1 $18 {[%cal Od2f4][%mdl 512] aiming for Qf4!} h5 27. Qf4 $1) 26... Rc6 {[%emt 0:02:24]} (26... Kh8 $14 27. Qf4 Rg6) 27. Re5 $18 {[%emt 0:01:05]} Kh8 {[%emt 0:03:06]} (27... Rd6 $142) 28. Rxd5 {[%emt 0:07:43]} Rd6 {[%emt 0:00:10]} 29. Rxd6 {[%emt 0:00:04]} Qxd6 {[%emt 0:00:03]} 30. Nh6 {[%emt 0:00:15]} Rg6 {[%emt 0:00:45] [#]} 31. Nf5 {[%emt 0:01:10]} Qf6 {[%emt 0:00:18]} 32. Ne3 {[%emt 0:01:41]} Qd6 {[%emt 0:01:20]} 33. Nd5 {[%emt 0:01:12] And now Re1 would win.} Bd8 {[%emt 0:00:10]} 34. Nf4 {[%emt 0:03:23]} (34. a4 $142) 34... Rg8 $16 {[%emt 0:00:24]} 35. Qe2 {[%emt 0:00:32]} Bg5 {[%emt 0:01:49]} (35... Bd7 $142) 36. Nd5 {[%emt 0:01:30]} Bd7 {[%emt 0:00:40] [#]} 37. Qe5+ $1 {[%emt 0:00:24]} Qxe5 {[%emt 0:00:06]} 38. dxe5 {[%emt 0:00:01]} Be6 {[%emt 0:00:52]} 39. Nc7 {[%emt 0:04:15]} (39. Nf6 $16) 39... Bc8 {[%emt 0:00:02]} 40. Be4 {[%emt 0:01:04]} (40. Kf1 $16) 40... Rd8 {[%emt 0:00:18]} ({Black should play} 40... Bf4 $1 $11 41. Nd5 (41. Rd5 $2 Bb7 $19) 41... Bxe5) 41. Rxd8+ Bxd8 $14 {[%emt 0:00:01][%mdl 4096] Endgame KBB-KBN} 42. Ne8 {[%emt 0:00:34]} (42. Nd5 $14) 42... Bd7 {[%emt 0:01:41]} ({Black should try} 42... Bb6 $11) 43. Nd6 {[%emt 0:00:07]} (43. Nf6 $5 {[%cal Rf6d7]} Be6 44. Nd5 $16 (44. Nxh7 Bb6 $14)) 43... Kg7 {[%emt 0:01:05]} 44. Bb7 {[%emt 0:00:12]} a5 {[%emt 0:00:15]} 45. Ba6 {[%emt 0:00:18]} Bc7 {[%emt 0:00:16]} 46. Nxb5 {[%emt 0:01:20]} ({Reject} 46. Bxb5 Bxd6 47. Bxd7 Bxe5 $11) 46... Bxb5 {[%emt 0:00:13]} 47. Bxb5 {[%emt 0:00:02]} Bxe5 {[%emt 0:00:06]} 48. Bxc4 {[%emt 0:00:03]} Bxb2 $16 {[%emt 0:00:07] KB-KB} 49. a4 $1 {[%emt 0:00:01]} Bc3 {[%emt 0:00:33]} 50. Kg2 {[%emt 0:00:03]} Bb4 {[%emt 0:00:10]} 51. h3 {[%emt 0:03:29]} Bc3 {[%emt 0:00:05]} 52. Kf3 {[%emt 0:00:00]} Be1 {[%emt 0:00:07]} 53. Ke2 {[%emt 0:00:00]} Bb4 {[%emt 0:03:59]} 54. f4 {[%emt 0:01:30]} f6 {[%emt 0:00:00]} 55. Kf3 {[%emt 0:00:30]} h6 {[%emt 0:00:00]} 56. Ke4 {[%emt 0:00:00]} Be1 {[%emt 0:00:00] Black escapes into a draw.  Weighted Error Value: White=0.20 (precise) /Black=0.29 (precise)} 1/2-1/2

[Event "67th Mexican-ch Open 2022"]
[Site "Chihuahua"]
[Date "2022.04.17"]
[Round "8.13"]
[White "Silva Hernandez, Jose Luis"]
[Black "Diaz Rosas, Julio Cesar"]
[Result "0-1"]
[ECO "A45"]
[WhiteElo "2006"]
[BlackElo "2393"]
[Annotator "TA"]
[PlyCount "108"]
[EventDate "2022.04.12"]
[EventType "swiss"]
[EventCountry "MEX"]
[SourceTitle "playchess.com"]
[Source "ChessBase"]
[SourceQuality "1"]
[TimeControl "5400+30"]

{[%evp 9,108,-6,33,27,36,22,22,13,37,37,26,27,39,35,38,51,42,35,41,27,52,55,47,49,48,6,55,80,89,80,77,80,71,-32,-20,-111,-38,-60,-53,-54,-50,-45,-63,-60,-63,-63,-64,-105,-61,-121,-131,-160,-153,-156,-152,-179,-156,-159,-122,-90,-39,-109,-43,-44,-42,-118,-95,-106,-94,-130,-31,-66,-63,-133,-73,-73,-64,-55,-8,-31,-24,-60,-61,-72,-84,-1104,-1060,-29975,-29976,-6266,-6266,-29977,-29978,-6076,-29979,-29984,-29978,-29987,-29987,-29994,-29995]} 1. d4 {[%emt 0:00:30]} Nf6 {[%emt 0:15:57]} 2. Bg5 {[%emt 0:00:26]} c5 {[%emt 0:00:10]} 3. d5 {[%emt 0:00:13]} Ne4 {[%emt 0:00:08]} 4. Bf4 {[%emt 0:00:15]} e6 {[%emt 0:00:05]} 5. c4 {[%emt 0:01:00] [#]} Bd6 $146 {[%emt 0:00:23]} ({Predecessor:} 5... Qf6 6. e3 Qxb2 7. Ne2 Qxa1 {0-1 (7) Besa,M (1768)-Malicka,M (1907) Tornelo INT 2020}) 6. Bxd6 {[%emt 0:05:58] A45: Trompowsky Attack.} Nxd6 {[%emt 0:00:25]} 7. e3 {[%emt 0:00:11]} O-O {[%emt 0:00:09][%cal Ob7b5]} 8. Nf3 {[%emt 0:00:31] The position is equal.} Ne4 {[%emt 0:08:52]} 9. Bd3 {[%emt 0:03:12]} Nf6 {[%emt 0:00:34]} 10. O-O {[%emt 0:00:45]} exd5 {[%emt 0:00:48]} 11. cxd5 {[%emt 0:03:56]} d6 {[%emt 0:02:40]} 12. h3 {[%emt 0:00:10]} Nbd7 {[%emt 0:00:58]} 13. Nc3 {[%emt 0:01:43]} Re8 {[%emt 0:00:06]} 14. Qc2 {[%emt 0:06:21]} Nf8 {[%emt 0:00:31]} 15. Rfe1 {[%emt 0:02:20]} Ng6 {[%emt 0:00:10]} 16. Bxg6 {[%emt 0:06:09]} hxg6 {[%emt 0:01:02]} 17. Nd2 {[%emt 0:01:23]} b5 {[%emt 0:02:15]} (17... g5 $11) 18. Nxb5 $14 {[%emt 0:09:07] Black must now prevent Nc4.} Nxd5 {[%emt 0:00:27]} 19. Nc4 $1 {[%emt 0:01:27]} Nb4 {[%emt 0:00:44]} 20. Qc3 {[%emt 0:09:31]} Re6 {[%emt 0:05:00]} 21. Rad1 {[%emt 0:16:47]} ({White should play} 21. a3 $1 $16 {[%cal Ra3b4]} Nc6 22. Nbxd6) 21... d5 $36 {[%emt 0:00:45][%mdl 2048] ...Bd7 is the strong threat. Black has some pressure.} 22. e4 {[%emt 0:02:47]} (22. a3 $11 {keeps the balance.} Nc6 23. Qc1) 22... Ba6 {[%emt 0:01:22]} (22... Bd7 $17 23. Ncd6 Qb6) 23. a4 {[%emt 0:01:55]} Bxb5 {[%emt 0:00:36]} 24. axb5 {[%emt 0:00:05]} d4 {[%emt 0:00:11]} 25. Qg3 {[%emt 0:02:32]} Qd7 {[%emt 0:00:54]} 26. e5 {[%emt 0:01:11]} Qxb5 {[%emt 0:02:14]} 27. Nd6 {[%emt 0:00:39]} Qc6 {[%emt 0:00:27]} 28. f4 {[%emt 0:00:33]} Nd5 {[%emt 0:01:12]} 29. h4 {[%emt 0:03:47]} ({Reject} 29. f5 gxf5 30. Nxf5 Rg6 $17) ({White should try} 29. Ne4 $15) 29... Ne3 $17 {[%emt 0:03:28]} 30. Rxe3 {[%emt 0:00:41]} dxe3 {[%emt 0:00:04]} 31. Qxe3 {[%emt 0:00:04]} Rd8 {[%emt 0:01:00][%cal Rd8d6] And now ...Rdxd6 would win.} 32. Qh3 {[%emt 0:00:32]} Qa4 {[%emt 0:01:27][%csl LRd1,LRf4]} 33. Qf3 {[%emt 0:00:41]} Qc2 {[%emt 0:02:59]} 34. b3 {[%emt 0:01:03]} Re7 {[%emt 0:02:53]} (34... Rb8 $17 35. Rd3 Qc1+ 36. Kh2 Qe1) 35. Rd3 {[%emt 0:01:59]} (35. Kh2 $1 $15) 35... Qc1+ {[%emt 0:05:48]} (35... f6 $17 36. h5 gxh5 37. Qd5+ Kf8) 36. Kh2 {[%emt 0:00:14]} Qe1 {[%emt 0:02:02]} 37. Kh3 {[%emt 0:04:33]} (37. Qg4 $15) 37... Red7 {[%emt 0:01:18]} 38. Rd1 {[%emt 0:01:40]} Qb4 {[%emt 0:01:31]} 39. Rd3 {[%emt 0:02:04]} Qb8 {[%emt 0:05:08]} (39... a5 $1 $17 40. g3 a4 41. bxa4 Qxa4) 40. Qd5 {[%emt 0:03:37]} Qc7 {[%emt 0:01:40]} 41. Kg4 {[%emt 0:01:58] [#]} (41. Kh2 $15) 41... Re7 {[%emt 0:01:37]} (41... Qb7 $142 $3 {[%mdl 512]} 42. h5 Qxd5 43. Rxd5 gxh5+ 44. Kxh5 Rc7) 42. Rc3 {[%emt 0:00:40]} Qd7+ {[%emt 0:02:05]} 43. Kg3 {[%emt 0:00:15]} Kh7 {[%emt 0:02:19]} (43... a5 $15 {was preferrable.}) 44. Qd3 {[%emt 0:05:06]} f6 {[%emt 0:01:16][%cal Bf7f6,Bf6e5,Be5f4][%mdl 32]} 45. h5 {[%emt 0:00:19]} fxe5 {[%emt 0:00:34]} 46. hxg6+ {[%emt 0:00:07] [#]} Kg8 $1 {[%emt 0:02:00]} (46... Kh8 $2 47. Qf3 (47. fxe5 Kg8 $16) 47... exf4+ 48. Kh2 $18) 47. Qd1 $2 {[%emt 0:02:13][%mdl 8192] Loses the game.} exf4+ $19 {[%emt 0:00:26]} 48. Kh2 {[%emt 0:00:04]} Qxd6 {[%emt 0:09:14]} 49. Qh5 {[%emt 0:00:10]} Re3 {[%emt 0:02:52] ( -> ...f3+)} 50. Qh7+ {[%emt 0:01:27]} Kf8 {[%emt 0:00:01]} 51. Qh8+ {[%emt 0:00:02]} Ke7 {[%emt 0:00:07]} 52. Qxg7+ {[%emt 0:00:09] Black mates.} Ke6 {[%emt 0:00:02]} 53. Qf7+ {[%emt 0:00:11]} Ke5 {[%emt 0:00:10]} 54. Qxf4+ {[%emt 0:00:13]} Kxf4 {[%emt 0:16:24] Weighted Error Value: White=0.55/Black=0.16 (very precise)} 0-1

[Event "67th Mexican-ch Open 2022"]
[Site "Chihuahua"]
[Date "2022.04.17"]
[Round "8.14"]
[White "Gongora Montes, Benjamin"]
[Black "Benitez Lozano, Javier"]
[Result "1-0"]
[ECO "E21"]
[WhiteElo "2157"]
[BlackElo "2309"]
[Annotator "TA"]
[PlyCount "51"]
[EventDate "2022.04.12"]
[EventType "swiss"]
[EventCountry "MEX"]
[SourceTitle "playchess.com"]
[Source "ChessBase"]
[SourceQuality "1"]
[TimeControl "5400+30"]

{[%evp 17,51,0,-6,-30,-23,-28,22,11,48,0,60,45,56,60,71,76,68,52,47,57,77,0,132,117,387,377,366,384,363,371,461,451,870,865,29991,1308]} 1. d4 {[%emt 0:05:45]} Nf6 {[%emt 0:00:21]} 2. c4 {[%emt 0:00:04]} e6 {[%emt 0:00:26]} 3. Nc3 {[%emt 0:00:05]} Bb4 {[%emt 0:00:15]} 4. Qc2 {[%emt 0:00:04]} b6 {[%emt 0:00:18]} 5. e3 {[%emt 0:09:20]} Bb7 {[%emt 0:00:50]} 6. Nf3 {[%emt 0:00:07]} Ne4 {[%emt 0:01:05]} 7. Bd2 {[%emt 0:01:47]} Bxc3 {[%emt 0:05:03]} 8. Bxc3 {[%emt 0:00:06]} O-O {[%emt 0:01:12]} 9. Bd3 {[%emt 0:01:23]} f5 {[%emt 0:00:47]} 10. O-O {[%emt 0:07:33] E21: Nimzo-Indian: 4 Nf3.} Nxc3 {[%emt 0:26:37]} 11. bxc3 {[%emt 0:01:30]} Nc6 {[%emt 0:13:53]} (11... Bxf3 $142 12. gxf3 Qh4) 12. e4 $11 {[%emt 0:00:39][%cal Re4f5] [#] The position is equal.} Ne7 $146 {[%emt 0:24:06]} ({Predecessor:} 12... Qf6 13. e5 Qg6 14. Qd2 Nxe5 15. dxe5 Bxf3 16. g3 Qh5 17. Rfe1 f4 18. Be2 fxg3 19. fxg3 Bxe2 20. Rxe2 Rf7 21. Rae1 Raf8 22. Rg2 Qxe5 {0-1 (22) Pfeifers,G (1508)-Fuchs,K (1808) SVR 2009}) 13. a4 {[%emt 0:00:27]} (13. d5 $14) 13... a5 {[%emt 0:09:10]} (13... Ng6 $11) 14. d5 $14 {[%emt 0:04:27]} fxe4 {[%emt 0:06:39]} 15. Bxe4 {[%emt 0:00:15]} exd5 {[%emt 0:00:42]} 16. Bxh7+ {[%emt 0:06:57]} Kh8 {[%emt 0:00:13][%cal Of8f3] Strongly threatening ...Rxf3!} 17. Ng5 {[%emt 0:05:47] aiming for Rae1. &Bianco is more active.} (17. Rfe1 $5 {[%cal Re1e5]}) 17... Nf5 $1 {[%emt 0:04:07]} 18. f4 {[%emt 0:00:32]} Qf6 {[%emt 0:00:34] [#]} (18... Ne3 19. Qd3 d4 20. cxd4 Rxf4 21. Bg8 $1 $18) 19. cxd5 {[%emt 0:04:25]} ({Better is} 19. Rae1 $1 $16 {[%cal Re1e5]}) 19... Ne3 {[%emt 0:02:05]} ({Resist} 19... Bxd5 20. Qd3 Bb7 21. Rad1 $16 (21. Qxd7 Bc6 $14)) (19... g6 $1 $11) 20. Qd3 $40 {[%emt 0:00:34][%mdl 128] Black is in trouble.} Nxd5 {[%emt 0:01:31][%mdl 8192] A mistake that costs the game.} (20... Nxf1 $16 21. Rxf1 Qh6) 21. Be4 $18 {[%emt 0:05:02][%cal Bh7e4,Be4b7,Bb7a6][%mdl 32]} ({Worse is} 21. Bg8 Qf5 22. Qxf5 Rxf5 23. Bxd5 Rxd5 $15) 21... Qxc3 {[%emt 0:00:18]} 22. Qxc3 {[%emt 0:00:55]} Nxc3 {[%emt 0:00:06]} 23. Bxb7 {[%emt 0:00:05]} Rab8 {[%emt 0:01:07]} 24. Ba6 {[%emt 0:00:36]} d5 {[%emt 0:00:33]} (24... Rbe8 $142 25. Rf3 Ne2+ 26. Bxe2 Rxe2) 25. Rf3 {[%emt 0:00:41]} d4 {[%emt 0:00:31]} 26. Rh3+ {[%emt 0:00:09] Weighted Error Value: White=0.12 (very precise) /Black=0.95} 1-0

[Event "67th Mexican-ch Open 2022"]
[Site "Chihuahua"]
[Date "2022.04.17"]
[Round "8.15"]
[White "Hernandez Guerrero, Eduardo"]
[Black "Hernandez Jimenez, Alexander Andres"]
[Result "1-0"]
[ECO "C84"]
[WhiteElo "2232"]
[BlackElo "2167"]
[Annotator "TA"]
[PlyCount "47"]
[EventDate "2022.04.12"]
[EventType "swiss"]
[EventCountry "MEX"]
[SourceTitle "playchess.com"]
[Source "ChessBase"]
[SourceQuality "1"]
[TimeControl "5400+30"]

{[%evp 15,47,18,28,23,26,27,29,21,33,16,21,24,16,17,21,0,5,1,36,31,32,19,41,47,60,32,392,396,375,360,562,555,537,528]} 1. e4 {[%emt 0:00:10]} e5 {[%emt 0:00:15]} 2. Nf3 {[%emt 0:00:10]} Nc6 {[%emt 0:00:08]} 3. Bb5 {[%emt 0:00:40]} a6 {[%emt 0:00:10]} 4. Ba4 {[%emt 0:00:05]} Nf6 {[%emt 0:00:17]} 5. O-O {[%emt 0:00:20]} b5 {[%emt 0:03:18]} 6. Bb3 {[%emt 0:00:11]} Be7 {[%emt 0:00:11]} 7. d3 {[%emt 0:05:46]} d6 {[%emt 0:01:05]} 8. c3 {[%emt 0:00:07]} O-O {[%emt 0:02:33]} 9. a4 {[%emt 0:01:25] 9.h3 is setting a new trend. C84: Closed Ruy Lopez: Unusual White 6th moves.} b4 {[%emt 0:03:06]} 10. a5 {[%emt 0:00:50]} bxc3 {[%emt 0:07:54]} 11. bxc3 {[%emt 0:00:52] White has an edge.} h6 {[%emt 0:07:10]} 12. Nbd2 {[%emt 0:01:36][%cal Bb1d2,Bd2c4,Bc4e3,Be3d5][%mdl 32]} Rb8 {[%emt 0:11:31]} 13. Re1 {[%emt 0:04:34]} Be6 {[%emt 0:06:55]} 14. Nc4 {[%emt 0:05:20]} Nd7 {[%emt 0:08:37] [#]} 15. Ba2 $146 {[%emt 0:02:59]} ({Predecessor:} 15. Ba4 Na7 16. Be3 Nb5 17. Qc2 f5 18. exf5 Bxf5 19. Ncd2 c5 20. Bb3+ Kh7 21. Ne4 {1-0 (44) Shirov,A (2726)-Almasi,Z (2650) Mallorca 2004}) 15... Bf6 {[%emt 0:02:16]} 16. h3 {[%emt 0:03:11]} d5 {[%emt 0:04:01]} 17. Ne3 {[%emt 0:04:56]} dxe4 {[%emt 0:00:19]} 18. dxe4 {[%emt 0:00:04]} Bxa2 {[%emt 0:02:45]} 19. Rxa2 {[%emt 0:00:58] Strongly threatening Rd2.} Qc8 {[%emt 0:10:16]} 20. Nd5 {[%emt 0:05:21]} Be7 $2 {[%emt 0:04:44][%mdl 8192] [#] A mistake that costs the game.} (20... Re8 $14) 21. Qa4 $1 $18 {[%emt 0:05:56]} Rb5 {[%emt 0:00:01] [#]} 22. c4 $1 {[%emt 0:00:09]} Nc5 {[%emt 0:01:31]} (22... Rxd5 $142 23. exd5 Nb4) 23. Nxe7+ {[%emt 0:01:05]} Nxe7 {[%emt 0:00:03]} 24. Qa3 {[%emt 0:00:09] Weighted Error Value: White=0.05 (flawless) /Black=0.65} 1-0